Cogmind - Beta 10.2 @@@ ROGUE MODE // 2021.02.13 @ 00:20:21 Player: Ordo Result: Destroyed by G-50 Soldier with Heavy Laser Performance ------------- Evolutions (2) 1000 Regions Visited (4) 800 Robots Destroyed (31) 155 Value Destroyed (710) 710 Prototype IDs (1) 20 Alien Tech Used (0) 0 Bonus (0) 0 TOTAL SCORE: 2685 Bonus ------- None Cogmind --------- Core Integrity 0/550 Matter 300/300 Energy 100/100 System Corruption 0% Temperature Cool (18) Movement Core (50) Location -8/Materials Parts ------- > --- POWER (2) -------- (None) > --- PROPULSION (3) --- (None) > --- UTILITY (3) ------ System Shield > --- WEAPON (3) ------- (None) > --- INVENTORY (4) ---- Light Deuterium Engine Improved Heat Sink Advanced Targeting Computer Shield Generator Peak State ------------ > --- POWER ------------ Light Nuclear Core Light Nuclear Core > --- PROPULSION ------- Wheel Wheel Compact Wheel > --- UTILITY ---------- Improved Heat Sink Improved Light Armor Plating System Shield > --- WEAPON ----------- Heavy EM Pulse Gun Heavy EM Pulse Gun Heavy EM Pulse Gun > --- INVENTORY -------- Light Deuterium Engine Improved Heat Sink Advanced Targeting Computer Shield Generator [Rating: 25] Favorites ----------- Power Light Nuclear Core Engine Ion Engine Power Core Light Nuclear Core Propulsion Compact Wheel Leg Aluminum Leg Wheel Compact Wheel Utility Improved Heat Sink Device Improved Heat Sink Storage Large Battery Processor Advanced Visual Processing Unit Hackware System Shield Protection Improved Light Armor Plating Weapon Heavy EM Pulse Gun Energy Gun Heavy EM Pulse Gun Ballistic Gun Assault Rifle Special Weapon Plasma Cutter Build | -11 -10 -10 -9 -8 ------- Run | Scr Mat Min Mat Mat Slots Evolved 4 | . . . 2 2 Power 1 | . . . . 1 Propulsion 1 | . . . 1 . Utility 1 | . . . 1 . Weapon 1 | . . . . 1 Parts Attached 43 | 7 8 7 7 14 Power 5 | 1 . 1 1 2 Engine 2 | 1 . . . 1 Core 3 | . . 1 1 1 Reactor . | . . . . . Propulsion 12 | 2 . 3 4 3 Treads . | . . . . . Leg 4 | 2 . 1 1 . Wheel 8 | . . 2 3 3 Hover . | . . . . . Flight . | . . . . . Utility 13 | 1 5 1 2 4 Device 5 | . 2 1 . 2 Storage 4 | 1 3 . . . Processor 1 | . . . 1 . Hackware 1 | . . . 1 . Protection 2 | . . . . 2 Artifact . | . . . . . Weapon 13 | 3 3 2 . 5 Energy Gun 11 | 2 2 2 . 5 Energy Cannon . | . . . . . Ballistic Gun 1 | 1 . . . . Ballistic Cannon . | . . . . . Launcher . | . . . . . Special Weapon 1 | . 1 . . . Impact Weapon . | . . . . . Slashing Weapon . | . . . . . Piercing Weapon . | . . . . . Special Melee Weapon . | . . . . . Unidentified Prototypes . | . . . . . Parts Lost 7 | . . . . 7 Power 2 | . . . . 2 Propulsion 3 | . . . . 3 Utility 2 | . . . . 2 Weapon . | . . . . . Highest Loss Streak 7 | . . . . 7 Average Slot Usage (%) 96 | . 97 99 97 94 Engine 3 | . 14 1 . 2 Core 10 | . . 12 10 14 Leg 8 | . 28 13 3 . Wheel 19 | . . 14 28 25 Device 11 | . 16 14 11 8 Storage 7 | . 9 14 11 2 Hackware 6 | . . . 10 9 Protection 2 | . . . . 5 Energy Gun 24 | . 27 28 22 24 Naked Turns . | . . . . . Heaviest Build 23 | 13 17 15 15 23 Greatest Support 42 | 20 20 26 42 42 Greatest Overweight (x) 2 | 2 . . . 2 Average Overweight (x) . | . . . . . Largest Inventory Capacity 6 | 6 6 4 4 4 Average Capacity 4 | 5 4 4 4 4 Most Carried 6 | 6 6 4 4 4 Average Carried 3 | 3 4 3 3 3 Final Capacity 6 | 6 4 4 4 4 Final Carried 6 | 6 4 3 4 4 Class Distribution -------------------- 63% | Mutant 19% | Scavenger-Tank 10% | Scavenger-Gunner 5% | Scavenger-Mutant Dominant Class ---------------- Mutant | -10/Materials Mutant | -10/Mines Mutant | -9/Materials Scavenger-Tank | -8/Materials Resources | -11 -10 -10 -9 -8 ----------- Run | Scr Mat Min Mat Mat Matter Collected 780 | 222 95 103 45 315 Remotely . | . . . . . Salvage Created 1315 | . 95 240 305 675 Parts 66 | . 12 12 6 36 Haulers Intercepted . | . . . . . Recyclers Shooed 2 | . . . 2 . Parts Field Recycled . | . . . . . Retrieved Matter . | . . . . . Parts Self-Destructed . | . . . . . Prevented . | . . . . . Kills | -11 -10 -10 -9 -8 ------- Run | Scr Mat Min Mat Mat Combat Hostiles Destroyed 20 | . 1 7 1 11 Guns 18 | . 1 6 1 10 AOE 1 | . . . . 1 Classes Destroyed 6 | . 2 1 2 1 Worker 1 | . . . . 1 Recycler 6 | . . . 3 3 Watcher 4 | . 3 . . 1 Swarmer 9 | . . 3 . 6 Grunt 7 | . 1 4 . 2 Sentry 4 | . . . 1 3 Best Kill Streak 3 | . 2 3 2 3 Combat Bots Only 3 | . 1 3 1 3 Max Kills in Single Turn 1 | . 1 1 1 1 Gunslinging . | . . . . . Exploded 1 | . . . . 1 Melee . | . . . . . Uniques/NPCs Destroyed . | . . . . . Combat | -11 -10 -10 -9 -8 -------- Run | Scr Mat Min Mat Mat Damage Taken 1551 | . 45 243 29 1234 Core 597 | . . 37 . 560 Absorbed by Shields . | . . . . . Core Remaining (%) 95 | 100 . 85 100 . Volleys Fired 70 | . 6 17 9 38 Largest 3 | . 2 2 2 3 Hottest 135 | . 90 90 90 135 Shots Fired 177 | . 12 34 18 113 Gun 177 | . 12 34 18 113 Cannon . | . . . . . Launcher . | . . . . . Special . | . . . . . Kinetic . | . . . . . Thermal 3 | . 3 . . . Explosive . | . . . . . Electromagnetic 174 | . 9 34 18 113 Robot Hit Streak 13 | . 4 7 13 7 Robot Miss Streak 6 | . 2 5 1 6 Penetration Max . | . . . . . Secondary Targets 3 | . . 2 . 1 Max Gunslinging Chain 1 | . . 1 . 1 Shots Hit Robots 82 | . 5 17 14 46 Core Hits 40 | . 4 8 5 23 Critical Hits . | . . . . . Critical Kills . | . . . . . Critical Parts Destroyed . | . . . . . Melee Attacks . | . . . . . Impact . | . . . . . Slashing . | . . . . . Piercing . | . . . . . Sneak Attacks . | . . . . . Combat Hostiles . | . . . . . Follow-up Attacks . | . . . . . Damage Inflicted 1491 | . 108 289 243 851 Guns 1308 | . 108 289 243 668 Cannons . | . . . . . Explosions 183 | . . . . 183 Melee . | . . . . . Ramming . | . . . . . Kinetic . | . . . . . Thermal 196 | . 13 . . 183 Explosive . | . . . . . Electromagnetic 1295 | . 95 289 243 668 Impact . | . . . . . Slashing . | . . . . . Piercing . | . . . . . Highest Corruption . | . . . . . Average Corruption . | . . . . . Corruption Purged . | . . . . . Overload Shots . | . . . . . Overflow Damage 19 | . . . . 19 Projectiles . | . . . . . Explosions 19 | . . . . 19 Melee . | . . . . . Knockbacks . | . . . . . Impact . | . . . . . Kinetic . | . . . . . Secondary . | . . . . . Self-Inflicted Damage 43 | . . . . 43 Shots 2 | . . . . 2 Rammed . | . . . . . Targets Rammed . | . . . . . Kicked . | . . . . . Crushed . | . . . . . Highest Temperature 258 | . 12 60 25 258 Average Temperature 71 | . 10 25 13 85 Received Heat Transfer 438 | . 27 114 18 279 Siege Activations . | . . . . . Robots Corrupted 1 | . . 1 . . Combat Hostiles 1 | . . 1 . . Parts Fried 3 | . . 1 1 1 Impact Corruptions . | . . . . . Robots Melted . | . . . . . Combat Hostiles . | . . . . . Parts Melted 1 | . . . . 1 Heat Transferred 237 | . 37 . . 200 Parts Sabotaged . | . . . . . Parts Stolen . | . . . . . Parts Stripped . | . . . . . Power Chain Reactions 3 | . . . . 3 Missiles Intercepted . | . . . . . Alert | -11 -10 -10 -9 -8 ------- Run | Scr Mat Min Mat Mat Peak Influence 298 | . 60 223 173 298 Initial 86 | . . 23 86 . Average 111 | . 37 102 117 163 Maximum Alert Level 1 | . . 1 . 1 Low Security (%) 84 | 100 100 84 100 63 Level 1 15 | . . 15 . 36 Level 2 . | . . . . . Level 3 . | . . . . . Level 4 . | . . . . . Level 5 . | . . . . . High Security . | . . . . . Max Security . | . . . . . Squads Dispatched 2 | . . . . 2 Investigation . | . . . . . Extermination . | . . . . . Reinforcement 2 | . . . . 2 Assault . | . . . . . Garrison . | . . . . . Intercept . | . . . . . Construction Impeded 1 | . . . . 1 Haulers Reinforced . | . . . . . Stealth | -11 -10 -10 -9 -8 --------- Run | Scr Mat Min Mat Mat Distress Signals 1 | . . . . 1 Communications Jammed . | . . . . . Distress Signals . | . . . . . Times Spotted 51 | . 6 12 2 31 Peak Tracking Total 9 | . 2 5 1 9 Tactical Retreats 6 | . . 1 . 5 Traps | -11 -10 -10 -9 -8 ------- Run | Scr Mat Min Mat Mat Traps Triggered . | . . . . . Indirectly . | . . . . . Trap Hack Attempts . | . . . . . Triggered . | . . . . . Disarmed 4 | . . . 4 . Reprogrammed . | . . . . . Reused . | . . . . . Traps Extracted . | . . . . . Installed . | . . . . . Triggered . | . . . . . Machines | -11 -10 -10 -9 -8 ---------- Run | Scr Mat Min Mat Mat Machines Disabled 5 | . 1 1 1 2 Max in Single Turn 1 | . 1 1 1 1 Machines Sabotaged . | . . . . . Garrisons Compromised . | . . . . . Overloaded Fab Kills . | . . . . . Fab Network Shutdowns . | . . . . . Hacking | -11 -10 -10 -9 -8 --------- Run | Scr Mat Min Mat Mat Machines Accessed 13 | . 4 . 4 5 Terminals 7 | . 2 . 2 3 Fabricators . | . . . . . Repair Stations 3 | . . . 1 2 Recycling Units 2 | . 2 . . . Scanalyzers 1 | . . . 1 . Garrison Access . | . . . . . Total Hacks 49 | . 12 . 18 19 Successful 29 | . 5 . 12 12 Failed 20 | . 7 . 6 7 Catastrophic . | . . . . . Database Lockouts . | . . . . . Manual . | . . . . . Terminals 26 | . 8 . 9 9 Fabricators . | . . . . . Repair Stations 16 | . . . 6 10 Recycling Units 4 | . 4 . . . Scanalyzers 3 | . . . 3 . Garrison Access . | . . . . . Terminal Hacks 12 | . 3 . 5 4 Record 2 | . . . 1 1 Alert Level 1 | . 1 . . . Locate Traps 3 | . 1 . 2 . Disarm Traps 1 | . . . 1 . Reinforcement Status 3 | . . . 1 2 Zone Layout 2 | . 1 . . 1 Fabricator Hacks . | . . . . . Repair Station Hacks 14 | . . . 6 8 Scan Component 7 | . . . 3 4 Repair 7 | . . . 3 4 Recycling Unit Hacks 2 | . 2 . . . Report Inventory 2 | . 2 . . . Scanalyzer 1 | . . . 1 . Insert Component 1 | . . . 1 . Garrison Access Hacks . | . . . . . Unauthorized Hacks . | . . . . . Terminals . | . . . . . Fabricators . | . . . . . Repair Stations . | . . . . . Recycling Units . | . . . . . Scanalyzers . | . . . . . Garrison Access . | . . . . . Data Cores Recovered . | . . . . . Used . | . . . . . Hacking Detections 11 | . 4 . 2 5 Full Trace Events 2 | . 2 . . . Feedback Events . | . . . . . Feedback Blocked . | . . . . . Robot Schematics Acquired . | . . . . . Robots Built . | . . . . . Matter . | . . . . . Time . | . . . . . Total Robot Build Rating . | . . . . . Part Schematics Acquired . | . . . . . Parts Built . | . . . . . Matter . | . . . . . Time . | . . . . . Total Part Build Rating . | . . . . . Parts Repaired 7 | . . . 3 4 Time 212 | . . . 90 122 Parts Recycled . | . . . . . Recycled Matter . | . . . . . Retrieved Matter . | . . . . . Retrieved Components . | . . . . . Parts Scanalyzed 1 | . . . 1 . Part Schematics Acquired . | . . . . . Parts Damaged . | . . . . . Bothacking | -11 -10 -10 -9 -8 ------------ Run | Scr Mat Min Mat Mat Used RIF Installer . | . . . . . Robots Hacked . | . . . . . Non-combat . | . . . . . Combat . | . . . . . Robot Hacks Applied . | . . . . . Relay Couplers Released . | . . . . . Robots Rewired . | . . . . . Allies Hacked . | . . . . . Hacks Repelled . | . . . . . Allies | -11 -10 -10 -9 -8 -------- Run | Scr Mat Min Mat Mat Total Allies . | . . . . . Largest Group . | . . . . . Highest-Rated Group . | . . . . . Highest-Rated Ally . | . . . . . Total Orders . | . . . . . Ally Attacks . | . . . . . Total Damage . | . . . . . Kills . | . . . . . Allies Corrupted . | . . . . . Allies Melted . | . . . . . Intel | -11 -10 -10 -9 -8 ------- Run | Scr Mat Min Mat Mat Robot Analysis Total . | . . . . . Derelict Logs Recovered . | . . . . . Drone Launches . | . . . . . Drone Recoveries . | . . . . . Exploration | -11 -10 -10 -9 -8 ------------- Run | Scr Mat Min Mat Mat Turns Passed 1855 | 118 324 233 480 700 Spaces Moved 1232 | 76 236 146 339 435 Core 20 | 18 . . . 2 Treads . | . . . . . Legs 362 | 58 236 68 . . Wheels 850 | . . 78 339 433 Hover . | . . . . . Flight . | . . . . . Fastest Speed 50 | 50 120 90 90 80 Average Speed 100 | 118 120 103 91 91 Slowest Speed 150 | 150 120 120 93 150 Overloaded Moves . | . . . . . Propulsion Burnouts . | . . . . . Robots Hopped . | . . . . . Cave-ins Triggered . | . . . . . Exploration Rate (%) 29 | 3 55 24 23 42 Regions Visited 4 Branch Regions 1 Pre-discovered Areas . | . . . . . Known Exits Taken . | . . . . . Unknown Exits Taken 4 | 1 1 1 1 . Scrap Searched 1 | . . 1 . . Spaces Dug . | . . . . . Terrain Destroyed 15 | . . . . 15 Melee . | . . . . . Projectile . | . . . . . AOE 15 | . . . . 15 Terrain Rammed . | . . . . . Walls Destroyed . | . . . . . Machines Disabled . | . . . . . Actions | -11 -10 -10 -9 -8 --------- Run | Scr Mat Min Mat Mat Total 1712 | 103 267 195 492 655 Wait 276 | 9 1 9 113 144 Move 1228 | 75 235 145 338 435 Hop . | . . . . . Pick Up 46 | 12 4 7 14 9 Fast Attach 22 | . 8 2 3 9 Attach 13 | 6 . 2 3 2 Detach . | . . . . . Swap 8 | 1 . 3 1 3 Drop 49 | . 13 10 11 15 Fire 70 | . 6 17 9 38 Melee . | . . . . . Ram . | . . . . . Kick . | . . . . . Crush . | . . . . . Escape Stasis . | . . . . . Rewire . | . . . . . Trap . | . . . . . Miscellaneous . | . . . . . Route ------- -11/Scrapyard -10/Materials (discovered 2 exits: [*Min x2]) -10/Mines -9/Materials -8/Materials History --------- Turn | Location | Event 15 | -11/Scrapyard | Discovered new exit (range 15) 119 | -11/Scrapyard | Entered Materials 283 | -10/Materials | Discovered new exit (range 8) 330 | -10/Materials | Build established: Mutant 374 | -10/Materials | Discovered new exit (range 16) 443 | -10/Materials | Entered Mines 507 | -10/Mines | YI-UF0 nonchalantly dropped a Grenade Launcher on the ground 607 | -10/Mines | Discovered new exit (range 8) 647 | -10/Mines | Assembled infested the area 676 | -10/Mines | Entered Materials 676 | -9/Materials | Evolved 2 slots: Propulsion x1, Utility x1 943 | -9/Materials | Repaired Com. Wheel 982 | -9/Materials | Repaired Lgt. Nuclear Core 1010 | -9/Materials | Repaired Wheel 1089 | -9/Materials | Discovered new exit (range 16) 1156 | -9/Materials | Entered another Materials area 1156 | -8/Materials | Evolved 2 slots: Power x1, Weapon x1 1494 | -8/Materials | Repaired Wheel 1592 | -8/Materials | Repaired Hvy. EM Pulse Gun 1627 | -8/Materials | Repaired Hvy. EM Pulse Gun 1660 | -8/Materials | Repaired Hvy. EM Pulse Gun 1842 | -8/Materials | Core integrity fell below 50% 1854 | -8/Materials | Core integrity fell below 20% 1856 | -8/Materials | Destroyed by G-50 Soldier with Heavy Laser Last Messages --------------- S-10 Pest destroyed. Door malfunctions. Chain reaction triggered in Lgt. Ion Engine. Flight Unit melted. S-10 Pest destroyed. Com. Wheel destroyed. Destroyed Com. Wheel. ALERT: Construction progress impeded, dispatching reinforcements to local area. Lgt. Nuclear Core destroyed. U-05 Engineer lays Concrete. Wheel destroyed. Dropped Hvy. EM Pulse Gun. Wheel destroyed. Imp. Light Armor Plating destroyed. Imp. Heat Sink destroyed. Lgt. Nuclear Core destroyed. S-10 Pest destroyed. K-01 Serf collects debris. S-10 Pest destroyed. Map ----- +----------------------------------------------------+ | ??????????????????# #?????????# #???# T | | ??????????????????# #?????????# #???# " | | ??????????????????# #?????????# #???# | | ??????????????????+ #?????##### ##########+#+# | | ??????????????????# ????? | | ??????????????????# ?????? | | ???????????????????????????? | | ????????????????????????????????######## ###+### | | ?????????????????????????? ???? #??# # # | | ?????????????????????????# ???? #??# # # | | ?????????????????????????+ ???? #??# #! # | | ?????????????????????????# #??? #??# # # | | ?????????????????????????# #??? #??# # # | | ?????????????????????????# #??? #??# # # | | ?????????????????????????# #???####??# # # | | ?????????????????????????# #?????????# # ! # | | ?????????????????????????# #?????????# # / | | ?????????????????????????# #?????????# # # | | ?????????????????????????# #?????????# # ! # | | ?????????????????????????# ########### # # | | ?????????????????????????# # ! # ####### | | ?????????????????????????# g #! """ # #?????? | | ?????????????????????????# # """"" # #?????? | | ?????????????????????????# *# """"" # #?????? | | ??????????????????########s g/ """"" # ####### | | ??????????????????# @[ga# """ # | | ??????????????????# s% # # % ####### | | ??????????????????# =s# # #?????? | | ??????????????????# #### ##/#######""+######?? | | ??????????????????# ???# #??# [% #?? | | ??????????????????# ????# #??# =#?? | | ??????????????????# ?????# u #??#* **] #?? | | ?????????????????? ??????# #??#= ** #?? | | ????????????????? ???????# #?#%!= *] #?? | | ???????????????? ????????# #?##!"T" #?? | | ???????????????##????????# #??#[ #?? | | ?????????????????????????# #??#############?? | | ?????????????????????????# #????????????????? | | ?????????????????????????# #????????????????? | | ?????????????????????????# ?????????????????? | | ?????????????????????????# ?????????????????? | | ?????????????????????????# ?????????????????? | | ??????????????????????????? ?????????????????? | | ????????????????????????????? ?????????????????? | | ?????????????????????????????????????????????????? | | ?????????????????????????????????????????????????? | | ?????????????????????????????????????????????????? | | ?????????????????????????????????????????????????? | | ?????????????????????????????????????????????????? | | ?????????????????????????????????????????????????? | +----------------------------------------------------+ Best States ------------- Heat Dissipation 45 Energy Generation 23 Energy Capacity 610 Matter Stores 300 Matter Capacity 500 Sight Range 16 Terrain Scan Density 10 Armor Coverage 150 Evasion (%) 42 Defensive Hacking 10 Item Schematics ----------------- None Robot Schematics ------------------ None Fabricated ------------ Nothing Alien Tech Used ----------------- None Achievements -------------- I Survived The Infestation Power Corrupts Challenges ------------ None Game ------ Seed NullAntigravBlade Manual? 0 Play Time 00:42:44 Cumulative 6.6 hours Start 2021.02.12 @ 23:34:55 End 2021.02.13 @ 00:20:21 Sessions 1 Manual Loads 0 Difficulty Rogue Special Mode None Game No. 5 Rogue 5 Adventurer 0 Explorer 0 Win Type - Total 0 Types 0/0/0/0/0/0/0/0/0 Lore% 7 Gallery% 9 Achievement% 14 Wizard Run 0 Options --------- ASCII 0 Keyboard 0 Movement Numpad Keybinds 0 Fullscreen 1 Font 18/SmallcapsGlow Map View 76x50 Tactical HUD 0 Map Filters NONE Filters NONE Steam 1 RUN: 0ced2c45-4e25-4167-ad30-ac0c3b09e19d